[Event "Titled Tuesday Blitz April 18 Late 2023"]
[White "Przybylski, Wojciech"]
[Black "Szpar, Milosz"]
[WhiteFideId "1117599"]
[BlackFideId "1184989"]
[WhiteElo "2222"]
[BlackElo "2436"]
[Result "0-1"]
[Round "04"]
[TimeControl "180+2"]
[Date "2023.04.18"]
[WhiteClock "0:00:07"]
[BlackClock "0:00:06"]

1. e4 {[%clk 0:03:00]}  c5 {[%clk 0:02:58]} 2. Nf3 {[%clk 0:03:00]}  e6 {[%clk 0:02:57]} 3. b3 {[%clk 0:02:59]}  Nc6 {[%clk 0:02:57]} 4. Bb5 {[%clk 0:02:59]}  Nge7 {[%clk 0:02:56]} 5. O-O {[%clk 0:02:58]}  a6 {[%clk 0:02:56]} 6. Bxc6 {[%clk 0:02:58]}  Nxc6 {[%clk 0:02:57]} 7. Bb2 {[%clk 0:02:58]}  d5 {[%clk 0:02:49]} 8. exd5 {[%clk 0:02:58]}  exd5 {[%clk 0:02:47]} 9. Re1+ {[%clk 0:02:58]}  Be6 {[%clk 0:02:33]} 10. d4 {[%clk 0:02:57]}  Be7 {[%clk 0:02:27]} 11. dxc5 {[%clk 0:02:56]}  Bxc5 {[%clk 0:02:27]} 12. Nc3 {[%clk 0:02:40]}  O-O {[%clk 0:02:24]} 13. h3 {[%clk 0:02:36]}  Qd7 {[%clk 0:02:09]} 14. Ne2 {[%clk 0:02:35]}  Ba7 {[%clk 0:02:01]} 15. Nf4 {[%clk 0:02:33]}  Rad8 {[%clk 0:01:59]} 16. Nh5 {[%clk 0:01:55]}  f6 {[%clk 0:01:58]} 17. Nf4 {[%clk 0:01:50]}  Bf7 {[%clk 0:01:58]} 18. Qd2 {[%clk 0:01:47]}  g5 {[%clk 0:01:52]} 19. Ne2 {[%clk 0:01:43]}  Bg6 {[%clk 0:01:37]} 20. Ng3 {[%clk 0:01:35]}  h5 {[%clk 0:01:27]} 21. h4 {[%clk 0:01:30]}  g4 {[%clk 0:01:24]} 22. Nd4 {[%clk 0:01:30]}  Ne5 {[%clk 0:01:23]} 23. Qh6 {[%clk 0:01:22]}  Qh7 {[%clk 0:01:02]} 24. Qxh7+ {[%clk 0:01:18]}  Kxh7 {[%clk 0:00:59]} 25. Ne6 {[%clk 0:01:17]}  Bxc2 {[%clk 0:00:56]} 26. Nxd8 {[%clk 0:01:03]}  Rxd8 {[%clk 0:00:56]} 27. Bxe5 {[%clk 0:00:34]}  fxe5 {[%clk 0:00:54]} 28. Rxe5 {[%clk 0:00:34]}  d4 {[%clk 0:00:53]} 29. Re7+ {[%clk 0:00:32]}  Kg6 {[%clk 0:00:51]} 30. Rxb7 {[%clk 0:00:32]}  Bb8 {[%clk 0:00:48]} 31. Rb6+ {[%clk 0:00:25]}  Kf7 {[%clk 0:00:47]} 32. Nf1 {[%clk 0:00:22]}  d3 {[%clk 0:00:46]} 33. Re1 {[%clk 0:00:19]}  g3 {[%clk 0:00:39]} 34. Rb7+ {[%clk 0:00:17]}  Kf6 {[%clk 0:00:36]} 35. Nxg3 {[%clk 0:00:16]}  Bxg3 {[%clk 0:00:35]} 36. fxg3 {[%clk 0:00:16]}  d2 {[%clk 0:00:35]} 37. Rf1+ {[%clk 0:00:16]}  Ke5 {[%clk 0:00:29]} 38. Re7+ {[%clk 0:00:13]}  Kd6 {[%clk 0:00:23]} 39. Ra7 {[%clk 0:00:04]}  d1=Q {[%clk 0:00:19]} 40. Rxd1+ {[%clk 0:00:04]}  Bxd1 {[%clk 0:00:20]} 41. Rxa6+ {[%clk 0:00:04]}  Kc5 {[%clk 0:00:21]} 42. Ra5+ {[%clk 0:00:04]}  Kb4 {[%clk 0:00:21]} 43. Ra4+ {[%clk 0:00:03]}  Kc3 {[%clk 0:00:22]} 44. Kf2 {[%clk 0:00:03]}  Rd2+ {[%clk 0:00:20]} 45. Ke1 {[%clk 0:00:03]}  Rd7 {[%clk 0:00:18]} 46. Rc4+ {[%clk 0:00:03]}  Kb2 {[%clk 0:00:18]} 47. Ra4 {[%clk 0:00:03]}  Bg4 {[%clk 0:00:17]} 48. Kf2 {[%clk 0:00:03]}  Rd2+ {[%clk 0:00:17]} 49. Kg1 {[%clk 0:00:03]}  Rd5 {[%clk 0:00:15]} 50. b4 {[%clk 0:00:03]}  Rb5 {[%clk 0:00:15]} 51. a3 {[%clk 0:00:04]}  Kb3 {[%clk 0:00:15]} 52. Ra5 {[%clk 0:00:04]}  Rb8 {[%clk 0:00:13]} 53. b5 {[%clk 0:00:04]}  Bd7 {[%clk 0:00:10]} 54. a4 {[%clk 0:00:04]}  Kb4 {[%clk 0:00:10]} 55. Ra6 {[%clk 0:00:04]}  Bg4 {[%clk 0:00:10]} 56. b6 {[%clk 0:00:04]}  Bc8 {[%clk 0:00:08]} 57. Ra7 {[%clk 0:00:03]}  Rxb6 {[%clk 0:00:08]} 58. Rh7 {[%clk 0:00:02]}  Bg4 {[%clk 0:00:08]} 59. Ra7 {[%clk 0:00:02]}  Rd6 {[%clk 0:00:08]} 60. Kh2 {[%clk 0:00:03]}  Rd2 {[%clk 0:00:08]} 61. a5 {[%clk 0:00:03]}  Ra2 {[%clk 0:00:09]} 62. a6 {[%clk 0:00:03]}  Kb5 {[%clk 0:00:09]} 63. Ra8 {[%clk 0:00:03]}  Rxa6 {[%clk 0:00:08]} 64. Rxa6 {[%clk 0:00:03]}  Kxa6 {[%clk 0:00:09]} 65. Kg1 {[%clk 0:00:03]}  Kb5 {[%clk 0:00:10]} 66. Kf2 {[%clk 0:00:04]}  Kc4 {[%clk 0:00:11]} 67. Kg1 {[%clk 0:00:04]}  Kd3 {[%clk 0:00:11]} 68. Kh2 {[%clk 0:00:05]}  Ke2 {[%clk 0:00:12]} 69. Kg1 {[%clk 0:00:05]}  Ke1 {[%clk 0:00:12]} 70. Kh2 {[%clk 0:00:05]}  Kf2 {[%clk 0:00:13]} 71. Kh1 {[%clk 0:00:06]}  Be6 {[%clk 0:00:13]} 72. Kh2 {[%clk 0:00:06]}  Bd5 {[%clk 0:00:13]} 73. g4 {[%clk 0:00:06]}  hxg4 {[%clk 0:00:12]} 74. h5 {[%clk 0:00:06]}  g3+ {[%clk 0:00:12]} 75. Kh3 {[%clk 0:00:06]}  Bxg2+ {[%clk 0:00:12]} 76. Kh4 {[%clk 0:00:07]}  Be4 {[%clk 0:00:12]} 77. h6 {[%clk 0:00:07]}  g2 {[%clk 0:00:12]} 78. h7 {[%clk 0:00:07]}  g1=Q {[%clk 0:00:09]} 79. h8=Q {[%clk 0:00:07]}  Qh2+ {[%clk 0:00:07]} 80. Kg5 {[%clk 0:00:07]}  Qxh8 {[%clk 0:00:06]} 0-1


[Site "https://www.chess.com"]

[Event "Titled Tuesday Blitz April 18 Late 2023"]
[White "Averjanov, Alexey"]
[Black "D`Arruda, Ricardo D."]
[WhiteFideId "14109867"]
[BlackFideId "100692"]
[WhiteElo "2621"]
[BlackElo "2452"]
[Result "1-0"]
[Round "04"]
[TimeControl "180+2"]
[Date "2023.04.18"]
[WhiteClock "0:00:38"]
[BlackClock "0:00:18"]

1. d4 {[%clk 0:03:00]}  Nf6 {[%clk 0:02:59]} 2. c4 {[%clk 0:03:00]}  e5 {[%clk 0:02:58]} 3. dxe5 {[%clk 0:03:00]}  Ne4 {[%clk 0:02:58]} 4. a3 {[%clk 0:03:00]}  Nc6 {[%clk 0:02:58]} 5. Nf3 {[%clk 0:02:57]}  d6 {[%clk 0:02:57]} 6. Qc2 {[%clk 0:02:51]}  d5 {[%clk 0:02:57]} 7. cxd5 {[%clk 0:02:47]}  Qxd5 {[%clk 0:02:58]} 8. Nc3 {[%clk 0:02:28]}  Nxc3 {[%clk 0:02:57]} 9. Qxc3 {[%clk 0:02:29]}  Bg4 {[%clk 0:02:55]} 10. Bf4 {[%clk 0:02:23]}  O-O-O {[%clk 0:02:55]} 11. h3 {[%clk 0:02:15]}  Bh5 {[%clk 0:02:54]} 12. g4 {[%clk 0:02:11]}  Bg6 {[%clk 0:02:53]} 13. Bg2 {[%clk 0:02:11]}  h5 {[%clk 0:02:43]} 14. Nh4 {[%clk 0:01:58]}  Be4 {[%clk 0:02:42]} 15. f3 {[%clk 0:01:59]}  Bh7 {[%clk 0:02:41]} 16. e4 {[%clk 0:01:58]}  Qd4 {[%clk 0:02:37]} 17. Qxd4 {[%clk 0:01:56]}  Nxd4 {[%clk 0:02:38]} 18. Kf2 {[%clk 0:01:54]}  Ne6 {[%clk 0:02:23]} 19. Be3 {[%clk 0:01:51]}  g5 {[%clk 0:02:02]} 20. Nf5 {[%clk 0:01:50]}  Bxf5 {[%clk 0:02:02]} 21. exf5 {[%clk 0:01:42]}  Nf4 {[%clk 0:01:57]} 22. Rhd1 {[%clk 0:01:37]}  Nd3+ {[%clk 0:01:44]} 23. Kg3 {[%clk 0:01:35]}  Nxe5 {[%clk 0:01:45]} 24. Bxg5 {[%clk 0:01:30]}  Rxd1 {[%clk 0:01:42]} 25. Rxd1 {[%clk 0:01:31]}  Bd6 {[%clk 0:01:41]} 26. f4 {[%clk 0:01:29]}  Nc4 {[%clk 0:01:37]} 27. Bf6 {[%clk 0:01:23]}  h4+ {[%clk 0:01:27]} 28. Bxh4 {[%clk 0:01:14]}  Re8 {[%clk 0:00:53]} 29. Bf3 {[%clk 0:00:53]}  Nxb2 {[%clk 0:00:48]} 30. Rd4 {[%clk 0:00:52]}  Bxa3 {[%clk 0:00:44]} 31. g5 {[%clk 0:00:51]}  a5 {[%clk 0:00:43]} 32. g6 {[%clk 0:00:49]}  Rg8 {[%clk 0:00:40]} 33. Bd5 {[%clk 0:00:44]}  Rg7 {[%clk 0:00:18]} 34. Be6+ {[%clk 0:00:38]} 1-0


[Site "https://www.chess.com"]

[Event "Titled Tuesday Blitz April 18 Late 2023"]
[White "Loiacono, Antonio"]
[Black "Prieto Aranguren, Alain"]
[WhiteFideId "895415"]
[BlackFideId "2268906"]
[WhiteElo "2257"]
[BlackElo "2209"]
[Result "0-1"]
[Round "04"]
[TimeControl "180+2"]
[Date "2023.04.18"]
[WhiteClock "0:00:04"]
[BlackClock "0:00:14"]

1. e4 {[%clk 0:03:00]}  c6 {[%clk 0:02:55]} 2. d4 {[%clk 0:03:00]}  d5 {[%clk 0:02:55]} 3. e5 {[%clk 0:03:01]}  Be6 {[%clk 0:02:54]} 4. Nd2 {[%clk 0:03:01]}  h5 {[%clk 0:02:54]} 5. Nb3 {[%clk 0:03:00]}  Qc8 {[%clk 0:02:53]} 6. h3 {[%clk 0:02:59]}  h4 {[%clk 0:02:52]} 7. Nf3 {[%clk 0:02:59]}  Na6 {[%clk 0:02:50]} 8. Bxa6 {[%clk 0:02:58]}  bxa6 {[%clk 0:02:50]} 9. Nc5 {[%clk 0:02:59]}  Bf5 {[%clk 0:02:46]} 10. c3 {[%clk 0:02:58]}  e6 {[%clk 0:02:44]} 11. Nd3 {[%clk 0:02:42]}  Be7 {[%clk 0:02:40]} 12. O-O {[%clk 0:02:34]}  Be4 {[%clk 0:02:38]} 13. Re1 {[%clk 0:02:19]}  Nh6 {[%clk 0:02:37]} 14. Ng5 {[%clk 0:01:54]}  Bf5 {[%clk 0:02:17]} 15. Bf4 {[%clk 0:01:36]}  Rb8 {[%clk 0:02:14]} 16. b4 {[%clk 0:01:34]}  a5 {[%clk 0:02:13]} 17. a3 {[%clk 0:01:33]}  Qa6 {[%clk 0:02:13]} 18. Nc5 {[%clk 0:01:16]}  Bxc5 {[%clk 0:02:13]} 19. dxc5 {[%clk 0:01:17]}  Bg6 {[%clk 0:02:09]} 20. Nf3 {[%clk 0:00:51]}  Nf5 {[%clk 0:02:09]} 21. Nd4 {[%clk 0:00:50]}  Nxd4 {[%clk 0:02:08]} 22. Qxd4 {[%clk 0:00:50]}  Qd3 {[%clk 0:02:00]} 23. Bd2 {[%clk 0:00:38]}  Qxd4 {[%clk 0:01:39]} 24. cxd4 {[%clk 0:00:38]}  a4 {[%clk 0:01:39]} 25. Re3 {[%clk 0:00:31]}  a6 {[%clk 0:01:38]} 26. Rae1 {[%clk 0:00:30]}  Bc2 {[%clk 0:01:36]} 27. Rc3 {[%clk 0:00:29]}  Bb3 {[%clk 0:01:35]} 28. Kh2 {[%clk 0:00:29]}  Bc4 {[%clk 0:01:35]} 29. Ree3 {[%clk 0:00:28]}  Kd7 {[%clk 0:01:30]} 30. Rf3 {[%clk 0:00:28]}  Rbf8 {[%clk 0:01:29]} 31. Rf4 {[%clk 0:00:24]}  Rh5 {[%clk 0:01:21]} 32. Rcf3 {[%clk 0:00:23]}  Ke8 {[%clk 0:01:20]} 33. Rg4 {[%clk 0:00:23]}  Be2 {[%clk 0:01:12]} 34. Rxg7 {[%clk 0:00:20]}  Bxf3 {[%clk 0:01:12]} 35. gxf3 {[%clk 0:00:21]}  Rhh8 {[%clk 0:01:04]} 36. Rg4 {[%clk 0:00:15]}  Rfg8 {[%clk 0:01:01]} 37. Bg5 {[%clk 0:00:13]}  Rh5 {[%clk 0:00:54]} 38. Bf6 {[%clk 0:00:13]}  Rg6 {[%clk 0:00:48]} 39. Kg2 {[%clk 0:00:11]}  Kf8 {[%clk 0:00:39]} 40. Kf1 {[%clk 0:00:11]}  Kg8 {[%clk 0:00:33]} 41. Ke2 {[%clk 0:00:11]}  Kh7 {[%clk 0:00:33]} 42. Ke3 {[%clk 0:00:08]}  Rf5 {[%clk 0:00:31]} 43. Rxh4+ {[%clk 0:00:07]}  Rh6 {[%clk 0:00:31]} 44. Rg4 {[%clk 0:00:05]}  Rxh3 {[%clk 0:00:28]} 45. Rg7+ {[%clk 0:00:05]}  Kh6 {[%clk 0:00:28]} 46. Rxf7 {[%clk 0:00:05]}  Rhxf3+ {[%clk 0:00:27]} 47. Ke2 {[%clk 0:00:05]}  Rxf2+ {[%clk 0:00:27]} 48. Ke1 {[%clk 0:00:05]}  Rf1+ {[%clk 0:00:27]} 49. Ke2 {[%clk 0:00:06]}  R5f2+ {[%clk 0:00:27]} 50. Ke3 {[%clk 0:00:06]}  Rf3+ {[%clk 0:00:28]} 51. Ke2 {[%clk 0:00:07]}  R1f2+ {[%clk 0:00:27]} 52. Ke1 {[%clk 0:00:07]}  Kg6 {[%clk 0:00:23]} 53. Rf8 {[%clk 0:00:07]}  Rf1+ {[%clk 0:00:21]} 54. Ke2 {[%clk 0:00:07]}  R1f2+ {[%clk 0:00:21]} 55. Ke1 {[%clk 0:00:07]}  Kh5 {[%clk 0:00:20]} 56. Rg8 {[%clk 0:00:05]}  Ra2 {[%clk 0:00:17]} 57. Rg5+ {[%clk 0:00:03]}  Kh6 {[%clk 0:00:17]} 58. Rg8 {[%clk 0:00:03]}  Rb3 {[%clk 0:00:15]} 59. Bg5+ {[%clk 0:00:02]}  Kh5 {[%clk 0:00:15]} 60. Kd1 {[%clk 0:00:02]}  Rb1+ {[%clk 0:00:14]} 61. Bc1 {[%clk 0:00:03]}  Raa1 {[%clk 0:00:14]} 62. Ke2 {[%clk 0:00:03]}  Rxc1 {[%clk 0:00:14]} 63. Kf3 {[%clk 0:00:03]}  Rc3+ {[%clk 0:00:14]} 64. Kf4 {[%clk 0:00:04]}  Rf1# {[%clk 0:00:14]} 0-1


[Site "https://www.chess.com"]

[Event "Titled Tuesday Blitz April 18 Late 2023"]
[White "Bruedigam, Martin"]
[Black "Garrido, Denis"]
[WhiteFideId "24608033"]
[BlackFideId "601217"]
[WhiteElo "2331"]
[BlackElo "2323"]
[Result "1-0"]
[Round "04"]
[TimeControl "180+2"]
[Date "2023.04.18"]
[WhiteClock "0:01:51"]
[BlackClock "0:02:05"]

1. d4 {[%clk 0:03:00]}  Nf6 {[%clk 0:02:59]} 2. c4 {[%clk 0:03:01]}  g6 {[%clk 0:02:59]} 3. f3 {[%clk 0:03:01]}  Bg7 {[%clk 0:02:58]} 4. e4 {[%clk 0:03:00]}  d6 {[%clk 0:02:58]} 5. Nc3 {[%clk 0:03:00]}  O-O {[%clk 0:02:58]} 6. Be3 {[%clk 0:03:00]}  c5 {[%clk 0:02:57]} 7. Nge2 {[%clk 0:02:56]}  cxd4 {[%clk 0:02:57]} 8. Nxd4 {[%clk 0:02:54]}  Nc6 {[%clk 0:02:57]} 9. Nc2 {[%clk 0:02:51]}  Be6 {[%clk 0:02:53]} 10. Qd2 {[%clk 0:02:51]}  Qa5 {[%clk 0:02:52]} 11. Be2 {[%clk 0:02:48]}  Rfc8 {[%clk 0:02:49]} 12. O-O {[%clk 0:02:44]}  a6 {[%clk 0:02:41]} 13. Rfc1 {[%clk 0:02:33]}  b5 {[%clk 0:02:21]} 14. cxb5 {[%clk 0:02:24]}  axb5 {[%clk 0:02:22]} 15. Nxb5 {[%clk 0:01:51]}  Qxd2 {[%clk 0:02:21]} 16. Bxd2 {[%clk 0:01:52]}  Rxa2 {[%clk 0:02:06]} 17. Rxa2 {[%clk 0:01:51]}  Bxa2 {[%clk 0:02:05]} 18. Nb4 {[%clk 0:01:51]} 1-0


[Site "https://www.chess.com"]

[Event "Titled Tuesday Blitz April 18 Late 2023"]
[White "Tymrakiewicz, Rafal"]
[Black "Sargsyan, Shant"]
[WhiteFideId "1108832"]
[BlackFideId "13306766"]
[WhiteElo "2151"]
[BlackElo "2628"]
[Result "0-1"]
[Round "04"]
[TimeControl "180+2"]
[Date "2023.04.18"]
[WhiteClock "0:00:02"]
[BlackClock "0:02:39"]

1. e4 {[%clk 0:02:58]}  a6 {[%clk 0:03:00]} 2. d4 {[%clk 0:02:56]}  e6 {[%clk 0:03:00]} 3. Nd2 {[%clk 0:02:57]}  d5 {[%clk 0:03:01]} 4. e5 {[%clk 0:02:57]}  c5 {[%clk 0:03:01]} 5. c3 {[%clk 0:02:57]}  Nc6 {[%clk 0:03:01]} 6. Ngf3 {[%clk 0:02:57]}  Bd7 {[%clk 0:03:01]} 7. Bd3 {[%clk 0:02:57]}  cxd4 {[%clk 0:03:02]} 8. cxd4 {[%clk 0:02:57]}  Nb4 {[%clk 0:03:02]} 9. Bb1 {[%clk 0:02:57]}  Bb5 {[%clk 0:03:02]} 10. Nb3 {[%clk 0:02:53]}  Rc8 {[%clk 0:02:51]} 11. a3 {[%clk 0:02:44]}  Ba4 {[%clk 0:02:51]} 12. Nfd2 {[%clk 0:01:58]}  Nc6 {[%clk 0:02:49]} 13. O-O {[%clk 0:01:43]}  Nxd4 {[%clk 0:02:48]} 14. Nxd4 {[%clk 0:01:06]}  Bxd1 {[%clk 0:02:45]} 15. Rxd1 {[%clk 0:01:07]}  Ne7 {[%clk 0:02:45]} 16. N2f3 {[%clk 0:01:00]}  Ng6 {[%clk 0:02:42]} 17. b4 {[%clk 0:00:46]}  Be7 {[%clk 0:02:40]} 18. Bb2 {[%clk 0:00:41]}  O-O {[%clk 0:02:39]} 19. Bd3 {[%clk 0:00:38]}  Nf4 {[%clk 0:02:39]} 20. Bf1 {[%clk 0:00:38]}  a5 {[%clk 0:02:39]} 21. g3 {[%clk 0:00:34]}  Ng6 {[%clk 0:02:39]} 22. b5 {[%clk 0:00:27]}  Bc5 {[%clk 0:02:38]} 23. a4 {[%clk 0:00:15]}  Qb6 {[%clk 0:02:38]} 24. Ra2 {[%clk 0:00:13]}  Be7 {[%clk 0:02:38]} 25. Ba1 {[%clk 0:00:12]}  Rc7 {[%clk 0:02:39]} 26. h4 {[%clk 0:00:11]}  Rfc8 {[%clk 0:02:39]} 27. h5 {[%clk 0:00:11]}  Nf8 {[%clk 0:02:40]} 28. Bb2 {[%clk 0:00:10]}  h6 {[%clk 0:02:39]} 29. Kg2 {[%clk 0:00:09]}  Bc5 {[%clk 0:02:39]} 30. Bd3 {[%clk 0:00:08]}  Nd7 {[%clk 0:02:38]} 31. Raa1 {[%clk 0:00:07]}  Bb4 {[%clk 0:02:38]} 32. Ra2 {[%clk 0:00:06]}  Bc3 {[%clk 0:02:39]} 33. Bc1 {[%clk 0:00:04]}  Bxd4 {[%clk 0:02:39]} 34. Nxd4 {[%clk 0:00:04]}  Qxd4 {[%clk 0:02:39]} 35. Bh7+ {[%clk 0:00:04]}  Kxh7 {[%clk 0:02:39]} 36. Rxd4 {[%clk 0:00:05]}  Rxc1 {[%clk 0:02:40]} 37. b6 {[%clk 0:00:02]}  Nxb6 {[%clk 0:02:39]} 0-1


[Site "https://www.chess.com"]

[Event "Titled Tuesday Blitz April 18 Late 2023"]
[White "Vivekananthan, Anish"]
[Black "Fernandez Garcia, Gumersindo"]
[WhiteFideId "2090775"]
[BlackFideId "24516740"]
[WhiteElo "2828"]
[BlackElo "2093"]
[Result "1-0"]
[Round "04"]
[TimeControl "180+2"]
[Date "2023.04.18"]
[WhiteClock "0:00:08"]
[BlackClock "0:00:06"]

1. e4 {[%clk 0:02:59]}  c5 {[%clk 0:02:52]} 2. d4 {[%clk 0:02:56]}  cxd4 {[%clk 0:02:51]} 3. c3 {[%clk 0:02:56]}  g6 {[%clk 0:02:48]} 4. Nf3 {[%clk 0:02:40]}  Bg7 {[%clk 0:02:45]} 5. cxd4 {[%clk 0:02:38]}  d5 {[%clk 0:02:46]} 6. exd5 {[%clk 0:02:30]}  Nf6 {[%clk 0:02:45]} 7. Nc3 {[%clk 0:02:30]}  O-O {[%clk 0:02:41]} 8. Bc4 {[%clk 0:02:27]}  b5 {[%clk 0:02:32]} 9. Bxb5 {[%clk 0:02:24]}  Nxd5 {[%clk 0:02:29]} 10. O-O {[%clk 0:02:16]}  Bg4 {[%clk 0:02:14]} 11. h3 {[%clk 0:02:12]}  Bf5 {[%clk 0:02:08]} 12. Qb3 {[%clk 0:02:08]}  Nb6 {[%clk 0:02:05]} 13. Bf4 {[%clk 0:01:55]}  N8d7 {[%clk 0:01:59]} 14. Bc6 {[%clk 0:01:49]}  Rc8 {[%clk 0:01:53]} 15. Bb7 {[%clk 0:01:48]}  Rc4 {[%clk 0:01:47]} 16. Rfd1 {[%clk 0:01:35]}  e6 {[%clk 0:01:33]} 17. a4 {[%clk 0:01:28]}  a5 {[%clk 0:01:31]} 18. g4 {[%clk 0:01:23]}  Rb4 {[%clk 0:01:16]} 19. Qa2 {[%clk 0:01:18]}  Bc2 {[%clk 0:01:16]} 20. Rd2 {[%clk 0:01:18]}  Bb3 {[%clk 0:01:15]} 21. Qb1 {[%clk 0:01:17]}  Nf6 {[%clk 0:01:13]} 22. Bc6 {[%clk 0:01:09]}  Nbd5 {[%clk 0:01:12]} 23. Be5 {[%clk 0:01:03]}  Qb6 {[%clk 0:01:10]} 24. Bb5 {[%clk 0:01:00]}  Bc4 {[%clk 0:01:06]} 25. Qc2 {[%clk 0:00:51]}  Bxb5 {[%clk 0:00:56]} 26. Nxb5 {[%clk 0:00:50]}  Rd8 {[%clk 0:00:44]} 27. Ne1 {[%clk 0:00:43]}  Nd7 {[%clk 0:00:24]} 28. Bxg7 {[%clk 0:00:41]}  Kxg7 {[%clk 0:00:25]} 29. Nd3 {[%clk 0:00:41]}  Rxb5 {[%clk 0:00:26]} 30. axb5 {[%clk 0:00:40]}  Qxb5 {[%clk 0:00:27]} 31. Qa4 {[%clk 0:00:33]}  Rb8 {[%clk 0:00:14]} 32. Qxb5 {[%clk 0:00:28]}  Rxb5 {[%clk 0:00:14]} 33. Rc2 {[%clk 0:00:24]}  N7b6 {[%clk 0:00:14]} 34. Kf1 {[%clk 0:00:20]}  a4 {[%clk 0:00:13]} 35. Ke2 {[%clk 0:00:20]}  Rb3 {[%clk 0:00:14]} 36. Ra3 {[%clk 0:00:18]}  Rb5 {[%clk 0:00:13]} 37. Nc5 {[%clk 0:00:16]}  Rb4 {[%clk 0:00:13]} 38. Kd3 {[%clk 0:00:12]}  f5 {[%clk 0:00:12]} 39. Nxe6+ {[%clk 0:00:09]}  Kf6 {[%clk 0:00:12]} 40. gxf5 {[%clk 0:00:10]}  Kxf5 {[%clk 0:00:11]} 41. Nc5 {[%clk 0:00:10]}  Kf4 {[%clk 0:00:11]} 42. Ne6+ {[%clk 0:00:08]}  Kf3 {[%clk 0:00:10]} 43. Kd2+ {[%clk 0:00:07]}  Kg2 {[%clk 0:00:11]} 44. Ke2 {[%clk 0:00:06]}  h5 {[%clk 0:00:07]} 45. Rg3+ {[%clk 0:00:07]}  Kh2 {[%clk 0:00:07]} 46. Ng5 {[%clk 0:00:08]}  Nf4+ {[%clk 0:00:07]} 47. Kf1 {[%clk 0:00:07]}  Rxd4 {[%clk 0:00:06]} 48. Nf3+ {[%clk 0:00:07]}  Kh1 {[%clk 0:00:06]} 49. Rg1# {[%clk 0:00:08]} 1-0


[Site "https://www.chess.com"]

[Event "Titled Tuesday Blitz April 18 Late 2023"]
[White "Goltsev, Dmitry"]
[Black "Aranda Marin, Cristian"]
[WhiteFideId "24176710"]
[BlackFideId "2205513"]
[WhiteElo "2336"]
[BlackElo "2233"]
[Result "1-0"]
[Round "04"]
[TimeControl "180+2"]
[Date "2023.04.18"]
[WhiteClock "0:00:05"]
[BlackClock "0:00:07"]

1. e4 {[%clk 0:02:58]}  e6 {[%clk 0:02:58]} 2. d4 {[%clk 0:02:57]}  d5 {[%clk 0:02:58]} 3. exd5 {[%clk 0:02:58]}  exd5 {[%clk 0:02:58]} 4. Nf3 {[%clk 0:02:59]}  c6 {[%clk 0:02:58]} 5. c4 {[%clk 0:02:59]}  Bd6 {[%clk 0:02:56]} 6. Nc3 {[%clk 0:02:58]}  Ne7 {[%clk 0:02:57]} 7. Bd3 {[%clk 0:02:58]}  dxc4 {[%clk 0:02:56]} 8. Bxc4 {[%clk 0:02:59]}  O-O {[%clk 0:02:54]} 9. O-O {[%clk 0:02:59]}  Bg4 {[%clk 0:02:54]} 10. Bg5 {[%clk 0:02:57]}  Nd7 {[%clk 0:02:53]} 11. Re1 {[%clk 0:02:53]}  Nb6 {[%clk 0:02:52]} 12. Bb3 {[%clk 0:02:53]}  Qc7 {[%clk 0:02:38]} 13. Rc1 {[%clk 0:02:43]}  Ng6 {[%clk 0:02:20]} 14. h3 {[%clk 0:02:40]}  Bd7 {[%clk 0:02:05]} 15. Nb5 {[%clk 0:02:33]}  Qb8 {[%clk 0:02:05]} 16. Nxd6 {[%clk 0:02:33]}  Qxd6 {[%clk 0:02:05]} 17. Qc2 {[%clk 0:02:30]}  Rae8 {[%clk 0:02:02]} 18. Rcd1 {[%clk 0:02:19]}  Be6 {[%clk 0:01:58]} 19. Ne5 {[%clk 0:02:14]}  Bxb3 {[%clk 0:01:52]} 20. Qxb3 {[%clk 0:02:15]}  Qd5 {[%clk 0:01:39]} 21. Qxd5 {[%clk 0:01:58]}  Nxd5 {[%clk 0:01:36]} 22. Nd7 {[%clk 0:01:58]}  Rxe1+ {[%clk 0:01:36]} 23. Rxe1 {[%clk 0:01:59]}  Rc8 {[%clk 0:01:32]} 24. g3 {[%clk 0:01:54]}  f6 {[%clk 0:01:32]} 25. Bd2 {[%clk 0:01:53]}  b6 {[%clk 0:01:32]} 26. Rc1 {[%clk 0:01:05]}  Nge7 {[%clk 0:01:17]} 27. b4 {[%clk 0:00:25]}  Rd8 {[%clk 0:01:15]} 28. Nc5 {[%clk 0:00:23]}  bxc5 {[%clk 0:01:15]} 29. Rxc5 {[%clk 0:00:23]}  Rb8 {[%clk 0:01:11]} 30. Ra5 {[%clk 0:00:18]}  Rb7 {[%clk 0:01:11]} 31. a3 {[%clk 0:00:18]}  Kf7 {[%clk 0:01:11]} 32. Kg2 {[%clk 0:00:17]}  Ke6 {[%clk 0:01:12]} 33. Ra6 {[%clk 0:00:18]}  Kd7 {[%clk 0:01:12]} 34. Ra5 {[%clk 0:00:17]}  Nc8 {[%clk 0:01:09]} 35. Rc5 {[%clk 0:00:17]}  Nd6 {[%clk 0:01:08]} 36. Kf3 {[%clk 0:00:16]}  g5 {[%clk 0:01:07]} 37. h4 {[%clk 0:00:09]}  h6 {[%clk 0:01:06]} 38. Rc1 {[%clk 0:00:08]}  Rb8 {[%clk 0:00:58]} 39. Kg4 {[%clk 0:00:07]}  Ne4 {[%clk 0:00:56]} 40. Be1 {[%clk 0:00:06]}  Ne7 {[%clk 0:00:50]} 41. f3 {[%clk 0:00:03]}  Nd6 {[%clk 0:00:50]} 42. Kh5 {[%clk 0:00:03]}  Rh8 {[%clk 0:00:50]} 43. Rc5 {[%clk 0:00:01]}  Ne8 {[%clk 0:00:48]} 44. Ra5 {[%clk 0:00:02]}  Ng7+ {[%clk 0:00:49]} 45. Kg4 {[%clk 0:00:03]}  h5+ {[%clk 0:00:49]} 46. Kh3 {[%clk 0:00:03]}  Ne6 {[%clk 0:00:49]} 47. Rxa7+ {[%clk 0:00:03]}  Kd6 {[%clk 0:00:50]} 48. b5 {[%clk 0:00:03]}  cxb5 {[%clk 0:00:49]} 49. Bb4+ {[%clk 0:00:04]}  Kd5 {[%clk 0:00:48]} 50. Rxe7 {[%clk 0:00:05]}  gxh4 {[%clk 0:00:46]} 51. Kxh4 {[%clk 0:00:06]}  Nxd4 {[%clk 0:00:39]} 52. Rd7+ {[%clk 0:00:06]}  Kc4 {[%clk 0:00:39]} 53. Rc7+ {[%clk 0:00:06]}  Kb3 {[%clk 0:00:34]} 54. Kh3 {[%clk 0:00:05]}  Re8 {[%clk 0:00:20]} 55. f4 {[%clk 0:00:05]}  Re3 {[%clk 0:00:18]} 56. Kh4 {[%clk 0:00:03]}  Nf5+ {[%clk 0:00:16]} 57. Kxh5 {[%clk 0:00:04]}  Rxg3 {[%clk 0:00:16]} 58. Rc5 {[%clk 0:00:04]}  Ng7+ {[%clk 0:00:16]} 59. Kh6 {[%clk 0:00:04]}  Ka4 {[%clk 0:00:16]} 60. Rc6 {[%clk 0:00:04]}  Nf5+ {[%clk 0:00:15]} 61. Kh5 {[%clk 0:00:05]}  Ng7+ {[%clk 0:00:15]} 62. Kh6 {[%clk 0:00:04]}  Ne8 {[%clk 0:00:15]} 63. Re6 {[%clk 0:00:04]}  Nc7 {[%clk 0:00:12]} 64. Rxf6 {[%clk 0:00:04]}  Nd5 {[%clk 0:00:12]} 65. Ra6+ {[%clk 0:00:05]}  Kb3 {[%clk 0:00:12]} 66. f5 {[%clk 0:00:06]}  Kc4 {[%clk 0:00:09]} 67. Bf8 {[%clk 0:00:05]}  Kd4 {[%clk 0:00:09]} 68. f6 {[%clk 0:00:05]}  Ke5 {[%clk 0:00:08]} 69. f7 {[%clk 0:00:05]}  Rf3 {[%clk 0:00:07]} 70. Bg7+ {[%clk 0:00:05]} 1-0


[Site "https://www.chess.com"]